[Event "*** MasterClass Titled Tuesday Blitz"]
[Site "Chess.com"]
[Date "2017.08.01"]
[Round "1"]
[White "rubhani"]
[Black "severomorskij"]
[Result "1-0"]
[WhiteElo "2388"]
[BlackElo "2657"]
[TimeControl "180+2"]
[EndTime "13:11:03 PDT"]
[Termination "rubhani won on time"]

1. e4 {[%clk 0:03:01.2]} 1... c5 {[%clk 0:03:00.3]} 2. Nf3 {[%clk 0:03:02]} 2...
Nc6 {[%clk 0:03:01.2]} 3. d4 {[%clk 0:03:02.9]} 3... cxd4 {[%clk 0:03:02.3]} 4.
Nxd4 {[%clk 0:03:04.8]} 4... e5 {[%clk 0:03:03.8]} 5. Nb5 {[%clk 0:03:05.5]}
5... d6 {[%clk 0:03:04.4]} 6. N1c3 {[%clk 0:03:03.8]} 6... a6 {[%clk 0:03:04.8]}
7. Na3 {[%clk 0:03:04.8]} 7... Be7 {[%clk 0:03:05.9]} 8. Be3 {[%clk 0:03:02.1]}
8... Nf6 {[%clk 0:02:58.4]} 9. Nc4 {[%clk 0:03:00.6]} 9... b5 {[%clk 0:02:59.2]}
10. Nb6 {[%clk 0:03:00.1]} 10... Rb8 {[%clk 0:03:00.2]} 11. Nxc8 {[%clk
0:03:00.1]} 11... Qxc8 {[%clk 0:03:00.5]} 12. Bd3 {[%clk 0:02:58.5]} 12... O-O
{[%clk 0:02:49.4]} 13. O-O {[%clk 0:02:58.8]} 13... b4 {[%clk 0:02:34.4]} 14.
Nd5 {[%clk 0:02:27.5]} 14... Nxd5 {[%clk 0:02:34.4]} 15. exd5 {[%clk 0:02:29.4]}
15... Nd8 {[%clk 0:02:35.4]} 16. Qe2 {[%clk 0:02:28.7]} 16... a5 {[%clk
0:02:36.1]} 17. a3 {[%clk 0:01:56.7]} 17... f5 {[%clk 0:02:34.6]} 18. axb4
{[%clk 0:01:55.4]} 18... axb4 {[%clk 0:02:35.8]} 19. Ra7 {[%clk 0:01:52.4]}
19... Nb7 {[%clk 0:02:27]} 20. Ba6 {[%clk 0:01:49.4]} 20... f4 {[%clk
0:02:23.1]} 21. Bc1 {[%clk 0:01:42.6]} 21... f3 {[%clk 0:02:11.9]} 22. gxf3
{[%clk 0:01:14.1]} 22... Qh3 {[%clk 0:01:51.4]} 23. Rxb7 {[%clk 0:01:01.7]}
23... Rxb7 {[%clk 0:01:51.8]} 24. Bxb7 {[%clk 0:01:02.9]} 24... Rf6 {[%clk
0:01:27.9]} 25. Kh1 {[%clk 0:00:45.3]} 25... Rxf3 {[%clk 0:01:07.2]} 26. Bc8
{[%clk 0:00:43.9]} 26... Qh5 {[%clk 0:01:07.1]} 27. Be6+ {[%clk 0:00:44.3]}
27... Kh8 {[%clk 0:01:07.4]} 28. Rg1 {[%clk 0:00:37.4]} 28... Rh3 {[%clk
0:01:03.3]} 29. Qxh5 {[%clk 0:00:36.4]} 29... Rxh5 {[%clk 0:01:02.8]} 30. Be3
{[%clk 0:00:37.5]} 30... g6 {[%clk 0:01:01.7]} 31. Ra1 {[%clk 0:00:37.6]} 31...
Bg5 {[%clk 0:01:01.1]} 32. Ra8+ {[%clk 0:00:34.3]} 32... Kg7 {[%clk 0:01:01.7]}
33. Rb8 {[%clk 0:00:35]} 33... Bxe3 {[%clk 0:01:00.2]} 34. fxe3 {[%clk
0:00:36.9]} 34... Rh4 {[%clk 0:01:00.9]} 35. Kg2 {[%clk 0:00:36.8]} 35... Rc4
{[%clk 0:01:00.9]} 36. Kg3 {[%clk 0:00:34.1]} 36... h5 {[%clk 0:00:53.1]} 37. h3
{[%clk 0:00:30.7]} 37... g5 {[%clk 0:00:51.9]} 38. b3 {[%clk 0:00:31.2]} 38...
Rxc2 {[%clk 0:00:43.6]} 39. Rxb4 {[%clk 0:00:31.6]} 39... Kf6 {[%clk 0:00:40.3]}
40. Rb8 {[%clk 0:00:31]} 40... e4 {[%clk 0:00:36.9]} 41. Rh8 {[%clk 0:00:30.2]}
41... Rc3 {[%clk 0:00:20.9]} 42. Rh6+ {[%clk 0:00:23.4]} 42... Kg7 {[%clk
0:00:21.1]} 43. Rxh5 {[%clk 0:00:23.6]} 43... Kg6 {[%clk 0:00:22.2]} 44. Kg4
{[%clk 0:00:22.1]} 44... Rxe3 {[%clk 0:00:21]} 45. Rxg5+ {[%clk 0:00:22.5]}
45... Kf6 {[%clk 0:00:22.2]} 46. Rf5+ {[%clk 0:00:23.7]} 46... Kg7 {[%clk
0:00:23.4]} 47. b4 {[%clk 0:00:23.6]} 47... Rb3 {[%clk 0:00:22.3]} 48. Rf7+
{[%clk 0:00:23.1]} 48... Kg6 {[%clk 0:00:20.8]} 49. Rb7 {[%clk 0:00:24.7]} 49...
Kf6 {[%clk 0:00:19]} 50. Kf4 {[%clk 0:00:25.1]} 50... e3 {[%clk 0:00:18.3]} 51.
Kf3 {[%clk 0:00:25.9]} 51... Ke5 {[%clk 0:00:19.5]} 52. Rg7 {[%clk 0:00:25.2]}
52... Kd4 {[%clk 0:00:18.3]} 53. Rg1 {[%clk 0:00:23.5]} 53... Rxb4 {[%clk
0:00:14.9]} 54. Rd1+ {[%clk 0:00:23.8]} 54... Ke5 {[%clk 0:00:15.9]} 55. Kxe3
{[%clk 0:00:24.9]} 55... Rb3+ {[%clk 0:00:17.2]} 56. Rd3 {[%clk 0:00:26]} 56...
Rb2 {[%clk 0:00:18.2]} 57. Kf3 {[%clk 0:00:26.9]} 57... Rb4 {[%clk 0:00:17.2]}
58. Re3+ {[%clk 0:00:27.1]} 58... Kf6 {[%clk 0:00:18]} 59. Re4 {[%clk
0:00:28.3]} 59... Rb3+ {[%clk 0:00:18.4]} 60. Kg4 {[%clk 0:00:29.6]} 60... Rb1
{[%clk 0:00:18.8]} 61. h4 {[%clk 0:00:30.9]} 61... Rg1+ {[%clk 0:00:19.2]} 62.
Kh5 {[%clk 0:00:32.1]} 62... Rg7 {[%clk 0:00:18.7]} 63. Rf4+ {[%clk 0:00:32.7]}
63... Ke7 {[%clk 0:00:14.3]} 64. Rg4 {[%clk 0:00:32.4]} 64... Rh7+ {[%clk
0:00:13.3]} 65. Kg6 {[%clk 0:00:33.5]} 65... Rh8 {[%clk 0:00:14.3]} 66. h5
{[%clk 0:00:34.8]} 66... Rf8 {[%clk 0:00:10.3]} 67. h6 {[%clk 0:00:35.4]} 67...
Rf1 {[%clk 0:00:08.6]} 68. h7 {[%clk 0:00:35.8]} 68... Rf6+ {[%clk 0:00:05.6]}
69. Kg7 {[%clk 0:00:36.6]} 69... Rf8 {[%clk 0:00:02.5]} 70. h8=Q {[%clk
0:00:30.7]} 70... Rg8+ {[%clk 0:00:02.7]} 71. Kxg8 {[%clk 0:00:31.1]} 1-0

[Event "*** MasterClass Titled Tuesday Blitz"]
[Site "Chess.com"]
[Date "2017.08.01"]
[Round "1"]
[White "oskariot"]
[Black "micfel"]
[Result "0-1"]
[WhiteElo "2505"]
[BlackElo "2274"]
[TimeControl "180+2"]
[EndTime "13:11:43 PDT"]
[Termination "micfel won by checkmate"]

1. c4 {[%clk 0:03:01.8]} 1... e5 {[%clk 0:03:00.4]} 2. Nc3 {[%clk 0:03:02.9]}
2... Nf6 {[%clk 0:03:00.7]} 3. e3 {[%clk 0:03:04.4]} 3... d6 {[%clk 0:03:01.1]}
4. Nf3 {[%clk 0:03:02.6]} 4... Be7 {[%clk 0:03:01.8]} 5. d4 {[%clk 0:03:03.8]}
5... Nbd7 {[%clk 0:03:01.7]} 6. Be2 {[%clk 0:02:59.9]} 6... O-O {[%clk
0:03:02.4]} 7. b3 {[%clk 0:02:56.9]} 7... c6 {[%clk 0:03:03.2]} 8. Bb2 {[%clk
0:02:55.9]} 8... Re8 {[%clk 0:03:03.7]} 9. Qc2 {[%clk 0:02:56.7]} 9... Bf8
{[%clk 0:03:04.5]} 10. O-O-O {[%clk 0:02:42.9]} 10... e4 {[%clk 0:03:02.4]} 11.
Nd2 {[%clk 0:02:43.4]} 11... d5 {[%clk 0:03:02.7]} 12. g4 {[%clk 0:02:44.5]}
12... Nb8 {[%clk 0:01:59.4]} 13. g5 {[%clk 0:02:35.7]} 13... Ng4 {[%clk
0:01:55]} 14. Rdf1 {[%clk 0:02:18.3]} 14... Bd6 {[%clk 0:01:51.2]} 15. cxd5
{[%clk 0:02:08.5]} 15... cxd5 {[%clk 0:01:48]} 16. Nb5 {[%clk 0:01:52.4]} 16...
Nxh2 {[%clk 0:01:40.2]} 17. Rfg1 {[%clk 0:01:44.8]} 17... Nc6 {[%clk 0:01:38.8]}
18. Nxd6 {[%clk 0:01:28.2]} 18... Qxd6 {[%clk 0:01:38.9]} 19. Rg3 {[%clk
0:01:25.2]} 19... Nf3 {[%clk 0:01:34]} 20. Bxf3 {[%clk 0:01:01.5]} 20... Nb4
{[%clk 0:01:33.8]} 21. Qd1 {[%clk 0:00:56]} 21... exf3 {[%clk 0:01:27.2]} 22.
Qxf3 {[%clk 0:00:54.9]} 22... Qc6+ {[%clk 0:01:15.4]} 23. Kb1 {[%clk 0:00:55.8]}
23... Qc2+ {[%clk 0:01:15]} 24. Ka1 {[%clk 0:00:57.2]} 24... Nd3 {[%clk
0:00:56.1]} 25. Rb1 {[%clk 0:00:49.9]} 25... Qxd2 {[%clk 0:00:54.9]} 26. Qd1
{[%clk 0:00:51]} 26... Qxf2 {[%clk 0:00:49.1]} 27. Rf3 {[%clk 0:00:48.6]} 27...
Nxb2 {[%clk 0:00:45]} 28. Rxb2 {[%clk 0:00:50]} 28... Qh4 {[%clk 0:00:40.9]} 29.
Qg1 {[%clk 0:00:46.4]} 29... Bg4 {[%clk 0:00:36.8]} 30. Rg3 {[%clk 0:00:38.7]}
30... Bf5 {[%clk 0:00:34]} 31. Rf2 {[%clk 0:00:38.5]} 31... Qe4 {[%clk
0:00:29.8]} 32. Rf4 {[%clk 0:00:39.3]} 32... Qe6 {[%clk 0:00:28.6]} 33. Qe1
{[%clk 0:00:39.3]} 33... Bg6 {[%clk 0:00:29.1]} 34. Rg2 {[%clk 0:00:39.7]} 34...
Rac8 {[%clk 0:00:29.1]} 35. Re2 {[%clk 0:00:38.8]} 35... Qc6 {[%clk 0:00:27.9]}
36. Kb2 {[%clk 0:00:38]} 36... b5 {[%clk 0:00:24.8]} 37. Qd2 {[%clk 0:00:37.2]}
37... b4 {[%clk 0:00:24.7]} 38. Rf1 {[%clk 0:00:37]} 38... a5 {[%clk 0:00:25.2]}
39. Rfe1 {[%clk 0:00:36.1]} 39... Be4 {[%clk 0:00:25.2]} 40. Rf2 {[%clk
0:00:36]} 40... Rc7 {[%clk 0:00:24.3]} 41. Rh2 {[%clk 0:00:34]} 41... Rec8
{[%clk 0:00:21.7]} 42. Rf1 {[%clk 0:00:34.7]} 42... Qb5 {[%clk 0:00:19.5]} 43.
Rff2 {[%clk 0:00:32.9]} 43... Rc2+ {[%clk 0:00:16.7]} 44. Qxc2 {[%clk
0:00:33.8]} 44... Rxc2+ {[%clk 0:00:16.7]} 45. Rxc2 {[%clk 0:00:34.7]} 45...
Bxc2 {[%clk 0:00:16.3]} 46. Rxc2 {[%clk 0:00:36.6]} 46... h6 {[%clk 0:00:16]}
47. gxh6 {[%clk 0:00:37.3]} 47... gxh6 {[%clk 0:00:16.9]} 48. Rg2+ {[%clk
0:00:39.2]} 48... Kh7 {[%clk 0:00:17.8]} 49. Rf2 {[%clk 0:00:41.1]} 49... Qd3
{[%clk 0:00:18.6]} 50. Rxf7+ {[%clk 0:00:41.2]} 50... Kg6 {[%clk 0:00:19.3]} 51.
Rd7 {[%clk 0:00:42.5]} 51... Qd2+ {[%clk 0:00:19.1]} 52. Kb1 {[%clk 0:00:43.5]}
52... Qd1+ {[%clk 0:00:19.5]} 53. Kb2 {[%clk 0:00:44.9]} 53... Qd2+ {[%clk
0:00:20.2]} 54. Kb1 {[%clk 0:00:46.2]} 54... Qg2 {[%clk 0:00:19.1]} 55. Kc1
{[%clk 0:00:45.4]} 55... Kf5 {[%clk 0:00:16.4]} 56. Re7 {[%clk 0:00:45.5]} 56...
h5 {[%clk 0:00:15.7]} 57. Re5+ {[%clk 0:00:46]} 57... Kg4 {[%clk 0:00:16.5]} 58.
e4 {[%clk 0:00:47.5]} 58... dxe4 {[%clk 0:00:16.3]} 59. d5 {[%clk 0:00:48.9]}
59... Kf3 {[%clk 0:00:13.8]} 60. d6 {[%clk 0:00:47.5]} 60... Ke3 {[%clk
0:00:14.5]} 61. d7 {[%clk 0:00:46.4]} 61... Qd2+ {[%clk 0:00:14]} 62. Kb1 {[%clk
0:00:47.2]} 62... Qxd7 {[%clk 0:00:10.4]} 63. Rxh5 {[%clk 0:00:48.5]} 63... Qd1+
{[%clk 0:00:09.4]} 64. Kb2 {[%clk 0:00:49.1]} 64... Qxh5 {[%clk 0:00:09.4]} 65.
a4 {[%clk 0:00:51]} 65... Kd4 {[%clk 0:00:09.6]} 66. Ka2 {[%clk 0:00:52]} 66...
Qe2+ {[%clk 0:00:10.2]} 67. Ka1 {[%clk 0:00:52.8]} 67... Kc3 {[%clk 0:00:09.3]}
68. Kb1 {[%clk 0:00:53.9]} 68... Qb2# {[%clk 0:00:07.7]} 0-1

[Event "*** MasterClass Titled Tuesday Blitz"]
[Site "Chess.com"]
[Date "2017.08.01"]
[Round "2"]
[White "Caisachess"]
[Black "Anton_Demchenko"]
[Result "0-1"]
[WhiteElo "2257"]
[BlackElo "2746"]
[TimeControl "180+2"]
[EndTime "13:18:07 PDT"]
[Termination "Anton_Demchenko won by resignation"]

1. e4 {[%clk 0:03:01.9]} 1... c5 {[%clk 0:03:00.3]} 2. c3 {[%clk 0:03:02.7]}
2... Nf6 {[%clk 0:03:00.2]} 3. e5 {[%clk 0:03:03.7]} 3... Nd5 {[%clk 0:03:01.4]}
4. d4 {[%clk 0:03:05.3]} 4... cxd4 {[%clk 0:03:01.9]} 5. Nf3 {[%clk 0:03:06.9]}
5... e6 {[%clk 0:03:03.8]} 6. cxd4 {[%clk 0:03:08.3]} 6... b6 {[%clk 0:03:05.1]}
7. a3 {[%clk 0:03:09.7]} 7... Ba6 {[%clk 0:02:59.1]} 8. Bxa6 {[%clk 0:03:08.1]}
8... Nxa6 {[%clk 0:03:01]} 9. O-O {[%clk 0:03:09.8]} 9... Be7 {[%clk 0:03:01.6]}
10. Bd2 {[%clk 0:03:10.2]} 10... O-O {[%clk 0:03:02.4]} 11. Nc3 {[%clk
0:03:11.7]} 11... Nac7 {[%clk 0:03:02.4]} 12. Qe2 {[%clk 0:03:12.8]} 12... Rc8
{[%clk 0:02:55.9]} 13. Rac1 {[%clk 0:03:12.9]} 13... d6 {[%clk 0:02:46.7]} 14.
Nb5 {[%clk 0:03:09.2]} 14... Nxb5 {[%clk 0:02:38.8]} 15. Qxb5 {[%clk 0:03:09.2]}
15... Qe8 {[%clk 0:02:29.9]} 16. Qa6 {[%clk 0:03:03.2]} 16... Qd7 {[%clk
0:02:30.4]} 17. Rxc8 {[%clk 0:02:57.1]} 17... Rxc8 {[%clk 0:02:30.8]} 18. Rc1
{[%clk 0:02:58.5]} 18... Rxc1+ {[%clk 0:02:31.5]} 19. Bxc1 {[%clk 0:02:59.2]}
19... h6 {[%clk 0:02:33]} 20. h3 {[%clk 0:02:59.8]} 20... f6 {[%clk 0:02:05.2]}
21. Bd2 {[%clk 0:03:01.7]} 21... dxe5 {[%clk 0:01:46]} 22. Bc1 {[%clk
0:03:03.6]} 22... e4 {[%clk 0:01:43.5]} 23. Bd2 {[%clk 0:03:05.5]} 0-1

[Event "*** MasterClass Titled Tuesday Blitz"]
[Site "Chess.com"]
[Date "2017.08.01"]
[Round "2"]
[White "pedromartinez91"]
[Black "Jahonas"]
[Result "1-0"]
[WhiteElo "2319"]
[BlackElo "2168"]
[TimeControl "180+2"]
[EndTime "13:18:20 PDT"]
[Termination "pedromartinez91 won by resignation"]

1. e4 {[%clk 0:03:01.9]} 1... c6 {[%clk 0:03:00.1]} 2. c4 {[%clk 0:03:02.2]}
2... d5 {[%clk 0:03:01.3]} 3. exd5 {[%clk 0:03:03]} 3... cxd5 {[%clk 0:03:02.6]}
4. cxd5 {[%clk 0:03:04.1]} 4... Qxd5 {[%clk 0:03:03.7]} 5. Nc3 {[%clk 0:03:05]}
5... Qd8 {[%clk 0:03:04.6]} 6. d4 {[%clk 0:03:06]} 6... Nf6 {[%clk 0:03:05.9]}
7. Nf3 {[%clk 0:03:06.3]} 7... e6 {[%clk 0:03:07.4]} 8. Bc4 {[%clk 0:02:57.5]}
8... a6 {[%clk 0:03:08.1]} 9. O-O {[%clk 0:02:57.7]} 9... Be7 {[%clk 0:03:08.1]}
10. Qe2 {[%clk 0:02:58.1]} 10... O-O {[%clk 0:03:08.7]} 11. Rd1 {[%clk
0:02:58.9]} 11... b5 {[%clk 0:03:05.8]} 12. Bb3 {[%clk 0:02:59.7]} 12... b4
{[%clk 0:03:02.7]} 13. Ne4 {[%clk 0:02:56.7]} 13... Bb7 {[%clk 0:03:00.9]} 14.
Nc5 {[%clk 0:02:57.1]} 14... Bxc5 {[%clk 0:02:59.7]} 15. dxc5 {[%clk 0:02:57.5]}
15... Qe7 {[%clk 0:02:59.6]} 16. Bf4 {[%clk 0:02:56.4]} 16... Qxc5 {[%clk
0:02:54.5]} 17. Bd6 {[%clk 0:02:56.5]} 17... Qh5 {[%clk 0:02:55.4]} 18. Bxf8
{[%clk 0:02:57.2]} 18... Kxf8 {[%clk 0:02:55.7]} 19. Rd8+ {[%clk 0:02:44.4]}
19... Ke7 {[%clk 0:02:56.2]} 20. Rad1 {[%clk 0:02:44.9]} 20... Nbd7 {[%clk
0:02:56.3]} 21. Rxa8 {[%clk 0:02:43.9]} 21... Bxa8 {[%clk 0:02:58.3]} 22. Qxa6
{[%clk 0:02:43.6]} 22... Bxf3 {[%clk 0:02:57.6]} 23. Qd6+ {[%clk 0:02:44.5]}
23... Ke8 {[%clk 0:02:55.6]} 24. gxf3 {[%clk 0:02:45.1]} 24... Qxf3 {[%clk
0:02:55.4]} 25. Ba4 {[%clk 0:02:45.3]} 25... Qg4+ {[%clk 0:02:50.7]} 26. Qg3
{[%clk 0:02:45.9]} 26... Qe2 {[%clk 0:02:39.2]} 27. Qxg7 {[%clk 0:02:39]} 27...
Ke7 {[%clk 0:02:34.2]} 28. Qg5 {[%clk 0:02:37.8]} 28... b3 {[%clk 0:02:23.6]}
29. Rxd7+ {[%clk 0:02:36.7]} 1-0

[Event "*** MasterClass Titled Tuesday Blitz"]
[Site "Chess.com"]
[Date "2017.08.01"]
[Round "2"]
[White "ChessQueen"]
[Black "FMVolodymyrSakun"]
[Result "1/2-1/2"]
[WhiteElo "2569"]
[BlackElo "2504"]
[TimeControl "180+2"]
[EndTime "13:19:24 PDT"]
[Termination "Game drawn by repetition"]

1. e4 {[%clk 0:03:01.9]} 1... c5 {[%clk 0:03:00.6]} 2. Nf3 {[%clk 0:03:02.5]}
2... e6 {[%clk 0:03:01.7]} 3. d4 {[%clk 0:03:03.2]} 3... cxd4 {[%clk 0:03:02.8]}
4. Nxd4 {[%clk 0:03:04.9]} 4... a6 {[%clk 0:03:04.1]} 5. Nc3 {[%clk 0:03:05.9]}
5... Qc7 {[%clk 0:03:05.3]} 6. Be2 {[%clk 0:03:05.1]} 6... Nc6 {[%clk
0:03:05.9]} 7. Be3 {[%clk 0:03:04.3]} 7... Nf6 {[%clk 0:03:06.7]} 8. O-O {[%clk
0:03:05.3]} 8... Be7 {[%clk 0:03:07.6]} 9. f4 {[%clk 0:03:05.3]} 9... d6 {[%clk
0:03:08.8]} 10. Qe1 {[%clk 0:03:06]} 10... O-O {[%clk 0:03:09.6]} 11. Qg3 {[%clk
0:03:05.5]} 11... Bd7 {[%clk 0:03:08.8]} 12. Kh1 {[%clk 0:03:01.5]} 12... b5
{[%clk 0:03:06.5]} 13. a3 {[%clk 0:03:00.3]} 13... Rac8 {[%clk 0:03:02.4]} 14.
Rad1 {[%clk 0:02:56.3]} 14... Na5 {[%clk 0:02:57.8]} 15. Bc1 {[%clk 0:02:43.8]}
15... Nc4 {[%clk 0:02:55.4]} 16. Rd3 {[%clk 0:02:43.9]} 16... Qb7 {[%clk
0:02:48.7]} 17. Bf3 {[%clk 0:02:41.4]} 17... e5 {[%clk 0:02:46.2]} 18. Nb3
{[%clk 0:02:16.8]} 18... Rfe8 {[%clk 0:02:39.7]} 19. f5 {[%clk 0:02:14.6]} 19...
Bc6 {[%clk 0:02:32.1]} 20. Re1 {[%clk 0:02:13]} 20... a5 {[%clk 0:02:30.5]} 21.
Bh6 {[%clk 0:02:10.2]} 21... Bf8 {[%clk 0:02:28.8]} 22. Bg5 {[%clk 0:02:11.1]}
22... Be7 {[%clk 0:02:26.6]} 23. Bh6 {[%clk 0:01:43.8]} 23... Bf8 {[%clk
0:02:27.3]} 24. Bg5 {[%clk 0:01:14.9]} 24... Be7 {[%clk 0:02:26.8]} 25. Bh6
{[%clk 0:01:15.9]} 25... Bf8 {[%clk 0:02:27.4]} 26. Bg5 {[%clk 0:01:17.1]} 26...
Be7 {[%clk 0:02:28.2]} 1/2-1/2

[Event "*** MasterClass Titled Tuesday Blitz"]
[Site "Chess.com"]
[Date "2017.08.01"]
[Round "2"]
[White "Gabix_94"]
[Black "petrpalachev"]
[Result "1-0"]
[WhiteElo "2536"]
[BlackElo "2413"]
[TimeControl "180+2"]
[EndTime "13:19:36 PDT"]
[Termination "Gabix_94 won by resignation"]

1. e4 {[%clk 0:03:01.9]} 1... e6 {[%clk 0:02:57.8]} 2. d4 {[%clk 0:03:02.8]}
2... d5 {[%clk 0:02:59.3]} 3. Nc3 {[%clk 0:03:04.5]} 3... Nf6 {[%clk 0:03:00]}
4. Bg5 {[%clk 0:03:04.9]} 4... dxe4 {[%clk 0:03:00.4]} 5. Nxe4 {[%clk
0:03:05.4]} 5... Nbd7 {[%clk 0:03:02]} 6. Nxf6+ {[%clk 0:03:06]} 6... Nxf6
{[%clk 0:03:02.1]} 7. Nf3 {[%clk 0:03:07.5]} 7... h6 {[%clk 0:03:02.2]} 8. Bh4
{[%clk 0:03:08.9]} 8... c5 {[%clk 0:03:02.6]} 9. Bd3 {[%clk 0:03:09.5]} 9...
cxd4 {[%clk 0:03:01]} 10. Nxd4 {[%clk 0:03:11.4]} 10... a6 {[%clk 0:02:54.8]}
11. O-O {[%clk 0:03:12.3]} 11... Bc5 {[%clk 0:02:53.4]} 12. Nf3 {[%clk
0:03:12.8]} 12... O-O {[%clk 0:02:52.8]} 13. Qe2 {[%clk 0:03:14.1]} 13... Be7
{[%clk 0:02:40.3]} 14. Rad1 {[%clk 0:03:13.5]} 14... Qb6 {[%clk 0:02:41.7]} 15.
Ne5 {[%clk 0:03:14]} 15... Qxb2 {[%clk 0:02:36.8]} 16. Bxf6 {[%clk 0:03:09]}
16... Bxf6 {[%clk 0:02:33.7]} 17. Qe4 {[%clk 0:03:10.1]} 17... Rd8 {[%clk
0:02:15.8]} 18. Qh7+ {[%clk 0:03:08.5]} 18... Kf8 {[%clk 0:02:17]} 19. Bg6
{[%clk 0:02:54.1]} 19... Rxd1 {[%clk 0:01:36.8]} 20. Rxd1 {[%clk 0:02:41.8]}
20... Ke7 {[%clk 0:01:20.2]} 21. Qh8 {[%clk 0:02:25.9]} 21... Qb6 {[%clk
0:01:01.8]} 22. Qg8 {[%clk 0:02:22.2]} 1-0

[Event "*** MasterClass Titled Tuesday Blitz"]
[Site "Chess.com"]
[Date "2017.08.01"]
[Round "2"]
[White "GasconJR"]
[Black "OparinGrigoriy"]
[Result "0-1"]
[WhiteElo "2335"]
[BlackElo "2679"]
[TimeControl "180+2"]
[EndTime "13:20:42 PDT"]
[Termination "OparinGrigoriy won by resignation"]

1. Nf3 {[%clk 0:03:01.9]} 1... f5 {[%clk 0:02:58.6]} 2. d4 {[%clk 0:02:57.7]}
2... Nf6 {[%clk 0:02:59.3]} 3. g3 {[%clk 0:02:57.5]} 3... e6 {[%clk 0:03:00.5]}
4. Bg2 {[%clk 0:02:58]} 4... d5 {[%clk 0:03:02.1]} 5. O-O {[%clk 0:02:59.1]}
5... Bd6 {[%clk 0:03:03.4]} 6. c4 {[%clk 0:02:59.9]} 6... O-O {[%clk 0:03:02.4]}
7. Nc3 {[%clk 0:02:56.4]} 7... c6 {[%clk 0:03:03.3]} 8. Qc2 {[%clk 0:02:50.7]}
8... Qe7 {[%clk 0:03:04.1]} 9. Rb1 {[%clk 0:02:48.1]} 9... Bd7 {[%clk
0:02:44.7]} 10. c5 {[%clk 0:02:44.1]} 10... Bc7 {[%clk 0:02:43.5]} 11. b4 {[%clk
0:02:45.6]} 11... b5 {[%clk 0:02:42.3]} 12. Bf4 {[%clk 0:02:43.7]} 12... Bxf4
{[%clk 0:02:39]} 13. gxf4 {[%clk 0:02:44.5]} 13... Be8 {[%clk 0:02:40.2]} 14.
Ne5 {[%clk 0:02:44]} 14... Nfd7 {[%clk 0:02:40.9]} 15. a4 {[%clk 0:02:44.2]}
15... a6 {[%clk 0:02:41.1]} 16. Ra1 {[%clk 0:02:45]} 16... Nxe5 {[%clk
0:02:41.1]} 17. fxe5 {[%clk 0:02:44.6]} 17... Ra7 {[%clk 0:02:42.4]} 18. axb5
{[%clk 0:02:38.8]} 18... axb5 {[%clk 0:02:44.3]} 19. Rxa7 {[%clk 0:02:39.6]}
19... Qxa7 {[%clk 0:02:46.2]} 20. Qb2 {[%clk 0:02:40.6]} 20... Bh5 {[%clk
0:02:46.7]} 21. Ra1 {[%clk 0:02:40.8]} 21... Qb7 {[%clk 0:02:47.1]} 22. f4
{[%clk 0:02:38.9]} 22... Na6 {[%clk 0:02:43.8]} 23. Ra5 {[%clk 0:02:37.2]} 23...
Nc7 {[%clk 0:02:44.3]} 24. Qa3 {[%clk 0:02:37.3]} 24... Ra8 {[%clk 0:02:45.8]}
25. Rxa8+ {[%clk 0:02:38.4]} 25... Qxa8 {[%clk 0:02:47.6]} 26. Qb2 {[%clk
0:02:27.7]} 26... h6 {[%clk 0:02:46.6]} 27. Kf2 {[%clk 0:02:28.4]} 27... g5
{[%clk 0:02:46]} 28. e3 {[%clk 0:02:22.8]} 28... Kg7 {[%clk 0:02:46.5]} 29. Bf1
{[%clk 0:02:15.2]} 29... Qb7 {[%clk 0:02:38]} 30. Qa3 {[%clk 0:02:14.8]} 30...
Qa6 {[%clk 0:02:39.1]} 31. Qb2 {[%clk 0:01:59.6]} 31... Kf7 {[%clk 0:02:35]} 32.
Kg3 {[%clk 0:01:55.6]} 32... Qa8 {[%clk 0:02:31.8]} 33. Kf2 {[%clk 0:01:54.7]}
33... Ke7 {[%clk 0:02:31.5]} 34. Bd3 {[%clk 0:01:49.5]} 34... Kd7 {[%clk
0:02:32.5]} 35. Qa2 {[%clk 0:01:40.9]} 35... Qxa2+ {[%clk 0:02:29.8]} 36. Nxa2
{[%clk 0:01:41.8]} 36... Na6 {[%clk 0:02:31.2]} 37. Be2 {[%clk 0:01:37.1]} 37...
Bxe2 {[%clk 0:02:27.8]} 38. Kxe2 {[%clk 0:01:38.3]} 38... Ke7 {[%clk 0:02:27.8]}
39. Kf3 {[%clk 0:01:39.3]} 39... Kf7 {[%clk 0:02:29.3]} 40. Kg3 {[%clk
0:01:35.7]} 40... Kg6 {[%clk 0:02:30.8]} 41. Kh3 {[%clk 0:01:36.5]} 41... h5
{[%clk 0:02:29.9]} 42. Kg3 {[%clk 0:01:37.3]} 42... h4+ {[%clk 0:02:30.4]} 43.
Kh3 {[%clk 0:01:34.9]} 43... Kh5 {[%clk 0:02:31.2]} 44. Kg2 {[%clk 0:01:31.3]}
44... gxf4 {[%clk 0:02:31.4]} 0-1

[Event "*** MasterClass Titled Tuesday Blitz"]
[Site "Chess.com"]
[Date "2017.08.01"]
[Round "2"]
[White "LaStreetCmaMaison"]
[Black "politeplayer"]
[Result "1-0"]
[WhiteElo "2491"]
[BlackElo "2214"]
[TimeControl "180+2"]
[EndTime "13:21:01 PDT"]
[Termination "LaStreetCmaMaison won by checkmate"]

1. b3 {[%clk 0:03:01.9]} 1... e5 {[%clk 0:02:57.8]} 2. Bb2 {[%clk 0:03:03.7]}
2... Nc6 {[%clk 0:02:59.3]} 3. Nf3 {[%clk 0:03:03.9]} 3... d6 {[%clk 0:02:55.5]}
4. e3 {[%clk 0:03:01.7]} 4... g6 {[%clk 0:02:56.4]} 5. d4 {[%clk 0:03:01.2]}
5... exd4 {[%clk 0:02:43.3]} 6. Nxd4 {[%clk 0:02:57.8]} 6... Nxd4 {[%clk
0:02:36.5]} 7. Qxd4 {[%clk 0:02:56.9]} 7... f6 {[%clk 0:02:35.1]} 8. Bc4 {[%clk
0:02:53.6]} 8... Bg7 {[%clk 0:02:32.8]} 9. Nc3 {[%clk 0:02:48.5]} 9... Ne7
{[%clk 0:02:30.2]} 10. e4 {[%clk 0:02:46.9]} 10... Nc6 {[%clk 0:02:21.7]} 11.
Qd5 {[%clk 0:02:44.5]} 11... Qe7 {[%clk 0:02:22.7]} 12. f4 {[%clk 0:02:36.9]}
12... Nb4 {[%clk 0:02:18.1]} 13. Qb5+ {[%clk 0:02:34.3]} 13... Nc6 {[%clk
0:02:17]} 14. O-O-O {[%clk 0:02:33.6]} 14... a6 {[%clk 0:02:11.5]} 15. Qd5
{[%clk 0:02:32.2]} 15... Nb4 {[%clk 0:02:08.2]} 16. Qd4 {[%clk 0:02:23.4]} 16...
f5 {[%clk 0:01:58.4]} 17. e5 {[%clk 0:02:24.2]} 17... Nc6 {[%clk 0:01:56]} 18.
exd6 {[%clk 0:01:59.7]} 18... cxd6 {[%clk 0:01:30.2]} 19. Qb6 {[%clk 0:01:54.5]}
19... Kf8 {[%clk 0:00:43.7]} 20. Rhe1 {[%clk 0:01:50.4]} 20... Qf6 {[%clk
0:00:40.5]} 21. Ba3 {[%clk 0:01:45.3]} 21... Qxc3 {[%clk 0:00:19.3]} 22. Qd8+
{[%clk 0:01:39]} 22... Nxd8 {[%clk 0:00:19]} 23. Bxd6# {[%clk 0:01:38.2]} 1-0